Cogmind - Beta 11.1 @@@ ROGUE MODE // 2022.10.17 @ 19:50:45 Player: Beepinex Result: Destroyed by G-47 Trooper with Particle Gun Performance ------------- Evolutions (2) 1000 Regions Visited (9) 1800 Robots Destroyed (68) 340 Value Destroyed (1663) 1663 Prototype IDs (7) 140 Alien Tech Used (0) 0 Bonus (883) 883 TOTAL SCORE: 5826 Bonus ------- High Alert Combat Kills 4 Entered Garrisons 200 Used RIF Installer 500 Aligned with FarCom 300 Friendly Fire -121 Cogmind --------- Core Integrity 0/550 Matter 251/300 Energy 29/100 System Corruption 0% Temperature Cool (9) Movement Core (150) Ox2 Location -8/Materials Parts ------- > --- POWER (1) -------- (None) > --- PROPULSION (4) --- Surge Thruster > --- UTILITY (4) ------ 0b10 Alert Chip Hacking Suite System Shield > --- WEAPON (2) ------- Proton Missile Launcher > --- INVENTORY (5) ---- Cooling System Relay Coupler [Grunt] (25) Relay Coupler [Grunt] (22) Peak State ------------ > --- POWER ------------ Light Nuclear Core > --- PROPULSION ------- Flight Unit Cesium-ion Thruster Surge Thruster Surge Thruster > --- UTILITY ---------- Advanced Weight Redist. System 0b10 Alert Chip Hacking Suite System Shield > --- WEAPON ----------- Advanced Beam Cannon Proton Missile Launcher > --- INVENTORY -------- Cooling System Relay Coupler [Grunt] Relay Coupler [Grunt] Minigun Proton Missile Launcher [Rating: 36] Favorites ----------- Power Light Ion Engine Engine Light Ion Engine Power Core Light Nuclear Core Propulsion Flight Unit Leg Aluminum Leg Hover Unit Improved Hover Unit Flight Unit Flight Unit Utility Hacking Suite Device Weight Redist. System Processor 0b10 Alert Chip Hackware Hacking Suite Protection Light Armor Plating Weapon Advanced Beam Cannon Energy Gun Small Laser Energy Cannon Advanced Beam Cannon Ballistic Gun Assault Rifle Launcher Grenade Launcher Special Weapon Plasma Cutter Build | -11 -10 -10 -9 -9 -9 -8 -8 -8 -8 ------- Run | Scr Mat Min Mat Min Exi Min Mat Gar Mat Slots Evolved 4 | . . . 2 . . . 2 . . Power . | . . . . . . . . . . Propulsion 2 | . . . 1 . . . 1 . . Utility 2 | . . . 1 . . . 1 . . Weapon . | . . . . . . . . . . Parts Attached 61 | 7 17 1 8 . . 1 16 . 11 Power 8 | 1 1 . 2 . . . 3 . 1 Engine 6 | 1 1 . 2 . . . 2 . . Core 2 | . . . . . . . 1 . 1 Reactor . | . . . . . . . . . . Propulsion 24 | 2 8 1 3 . . 1 4 . 5 Treads . | . . . . . . . . . . Leg 2 | 2 . . . . . . . . . Wheel . | . . . . . . . . . . Hover 5 | . 5 . . . . . . . . Flight 17 | . 3 1 3 . . 1 4 . 5 Utility 15 | 2 3 . 2 . . . 6 . 2 Device 11 | 2 3 . 1 . . . 3 . 2 Storage . | . . . . . . . . . . Processor 1 | . . . . . . . 1 . . Hackware 2 | . . . 1 . . . 1 . . Protection 1 | . . . . . . . 1 . . Artifact . | . . . . . . . . . . Weapon 14 | 2 5 . 1 . . . 3 . 3 Energy Gun 1 | 1 . . . . . . . . . Energy Cannon 5 | . 3 . 1 . . . 1 . . Ballistic Gun 2 | 1 . . . . . . . . 1 Ballistic Cannon . | . . . . . . . . . . Launcher 5 | . 2 . . . . . 1 . 2 Special Weapon 1 | . . . . . . . 1 . . Impact Weapon . | . . . . . . . . . . Slashing Weapon . | . . . . . . . . . . Piercing Weapon . | . . . . . . . . . . Special Melee Weapon . | . . . . . . . . . . Unidentified Prototypes 1 | . . . . . . . 1 . . Parts Lost 17 | . 2 . . . . . 7 1 7 Power 2 | . 1 . . . . . 1 . . Propulsion 9 | . 1 . . . . . 4 1 3 Utility 1 | . . . . . . . . . 1 Weapon 5 | . . . . . . . 2 . 3 Highest Loss Streak 7 | . 1 . . . . . 6 1 7 To Critical Strikes . | . . . . . . . . . . Average Slot Usage (%) 88 | . 84 100 93 100 100 100 88 69 80 Engine 8 | . 14 14 11 11 11 11 6 . . Core 1 | . . . . . . . 2 9 7 Hover 1 | . 5 . . . . . . . . Flight 26 | . 21 28 26 33 33 33 30 15 21 Device 17 | . 24 28 22 22 22 22 7 9 8 Processor 3 | . . . . . . . 9 9 9 Hackware 10 | . . . 11 11 11 11 15 18 18 Protection 1 | . . . . . . . 4 . . Energy Cannon 10 | . 13 14 11 11 11 11 8 9 8 Launcher 5 | . . 14 11 11 11 11 . . 6 Naked Turns . | . . . . . . . . . . Heaviest Build 16 | 8 11 11 15 15 15 15 16 9 16 Greatest Support 26 | 20 20 14 18 18 18 18 22 14 26 Greatest Overweight (x) 3 | 1 2 . . . . . 2 . 3 Average Overweight (x) . | . . . . . . . . . . Largest Inventory Capacity 5 | 5 5 5 5 5 5 5 5 5 5 Average Capacity 5 | 5 5 5 5 5 5 5 5 5 5 Most Carried 5 | 4 5 5 5 5 5 5 5 5 5 Average Carried 4 | 2 4 5 4 5 5 5 4 4 4 Final Capacity 5 | 5 5 5 5 5 5 5 5 5 5 Final Carried 5 | 3 5 5 5 5 5 5 5 5 3 Class Distribution -------------------- 54% | Scavenger-Mutant 20% | Mutant 12% | Scavenger-Sprinter 11% | Hacker-Mutant Dominant Class ---------------- Mutant | -10/Materials Mutant | -10/Mines Scavenger-Mutant | -9/Materials Scavenger-Mutant | -9/Mines Scavenger-Mutant | -9/Exiles Scavenger-Mutant | -8/Mines Scavenger-Sprinter | -8/Materials Scavenger-Mutant | -8/Garrison Hacker-Mutant | -8/Materials Resources | -11 -10 -10 -9 -9 -9 -8 -8 -8 -8 ----------- Run | Scr Mat Min Mat Min Exi Min Mat Gar Mat Matter Collected 880 | 161 287 . 139 . . 20 170 10 93 Remotely . | . . . . . . . . . . Salvage Created 2018 | 134 508 22 310 . . 74 322 223 425 Parts 149 | 11 41 1 14 . . 8 21 11 42 Haulers Intercepted 6 | . 2 . 2 . . . . . 2 Recyclers Shooed 1 | 1 . . . . . . . . . Parts Field Recycled . | . . . . . . . . . . Retrieved Matter . | . . . . . . . . . . Parts Self-Destructed . | . . . . . . . . . . Prevented . | . . . . . . . . . . Kills | -11 -10 -10 -9 -9 -9 -8 -8 -8 -8 ------- Run | Scr Mat Min Mat Min Exi Min Mat Gar Mat Combat Hostiles Destroyed 47 | . 11 3 5 . . 7 8 4 9 Guns 1 | . 1 . . . . . . . . Cannons 32 | . 7 . 4 . . 4 8 3 6 AOE 12 | . 2 3 1 . . 3 . . 3 Classes Destroyed 11 | 2 5 . 1 . . . 2 . 1 Worker 1 | . . . . . . . 1 . . Tunneler 5 | 3 1 . . . . . . . 1 Hauler 6 | . 2 . 2 . . . . . 2 Recycler 1 | 1 . . . . . . . . . Operator 4 | . 1 . 1 . . . 1 . 1 Watcher 4 | . 3 . . . . . 1 . . Swarmer 21 | . 5 3 . . . 7 4 . 2 Cutter 4 | . . . . . . . . . 4 Grunt 13 | . 6 . 3 . . . 2 . 2 Sentry 8 | . . . 2 . . . 1 4 1 Programmer 1 | . . . . . . . 1 . . Best Kill Streak 6 | 3 5 3 2 . . 3 6 3 4 Combat Bots Only 6 | . 4 3 2 . . 3 6 3 4 Max Kills in Single Turn 3 | 1 3 3 1 . . 2 1 1 2 Gunslinging . | . . . . . . . . . . Exploded 3 | . 2 3 1 . . 2 . . 2 Melee . | . . . . . . . . . . Uniques/NPCs Destroyed . | . . . . . . . . . . Combat | -11 -10 -10 -9 -9 -9 -8 -8 -8 -8 -------- Run | Scr Mat Min Mat Min Exi Min Mat Gar Mat Damage Taken 2147 | . 366 25 71 . . 123 452 125 985 Core 675 | . 103 . . . . 15 87 49 421 Absorbed by Shields . | . . . . . . . . . . Regen/Repaired (Parts) 132 | . 17 . 16 . . . 99 . . Core Remaining (%) 84 | 100 . 58 . . . 96 . . . Volleys Fired 200 | 9 48 1 26 . . 18 43 12 43 Largest 2 | 2 2 1 2 . . 2 2 1 1 Hottest 108 | 60 108 30 98 . . 98 98 68 68 Shots Fired 231 | 18 62 1 28 . . 20 47 12 43 Gun 40 | 18 14 . . . . . . . 8 Cannon 172 | . 47 . 26 . . 18 41 12 28 Launcher 16 | . 1 1 2 . . 2 3 . 7 Special 3 | . . . . . . . 3 . . Kinetic 17 | 9 . . . . . . . . 8 Thermal 198 | 9 61 . 26 . . 18 44 12 28 Explosive 9 | . 1 1 2 . . 2 3 . . Electromagnetic 7 | . . . . . . . . . 7 Robot Hit Streak 13 | 5 6 5 7 . . 4 12 13 11 Robot Miss Streak 6 | 1 2 . 1 . . 6 4 1 4 Penetration Max . | . . . . . . . . . . Secondary Targets . | . . . . . . . . . . Shots Hit Robots 144 | 12 38 1 20 . . 8 30 10 25 Core Hits 83 | 5 19 3 11 . . 7 15 4 19 Critical Kills 1 | . . . . . . . . 1 . Critical Parts Destroyed . | . . . . . . . . . . Critical Strikes 1 | . . . . . . . . 1 . Meltdown 1 | . . . . . . . . 1 . Melee Attacks . | . . . . . . . . . . Impact . | . . . . . . . . . . Slashing . | . . . . . . . . . . Piercing . | . . . . . . . . . . Sneak Attacks . | . . . . . . . . . . Combat Hostiles . | . . . . . . . . . . Follow-up Attacks . | . . . . . . . . . . Damage Inflicted 3770 | 141 851 143 522 . . 284 709 204 916 Guns 338 | 141 90 . . . . . . . 107 Cannons 2418 | . 610 . 422 . . 155 658 204 369 Explosions 1003 | . 151 143 100 . . 129 40 . 440 Melee . | . . . . . . . . . . Ramming . | . . . . . . . . . . Kinetic 172 | 65 . . . . . . . . 107 Thermal 2595 | 76 700 . 422 . . 155 669 204 369 Explosive 625 | . 151 143 100 . . 129 40 . 62 Electromagnetic 378 | . . . . . . . . . 378 Impact . | . . . . . . . . . . Slashing . | . . . . . . . . . . Piercing . | . . . . . . . . . . Highest Corruption . | . . . . . . . . . . Average Corruption . | . . . . . . . . . . Corruption Purged . | . . . . . . . . . . Corruption Blocked . | . . . . . . . . . . Overload Shots . | . . . . . . . . . . Overflow Damage 102 | . 18 . 26 . . . 13 . 45 Projectiles 52 | . 11 . 26 . . . 13 . 2 Explosions 50 | . 7 . . . . . . . 43 Melee . | . . . . . . . . . . Knockbacks . | . . . . . . . . . . Impact . | . . . . . . . . . . Kinetic . | . . . . . . . . . . Secondary . | . . . . . . . . . . Self-Inflicted Damage 40 | . . 8 . . . . 32 . . Shots 2 | . . 1 . . . . 1 . . Rammed . | . . . . . . . . . . Targets Rammed . | . . . . . . . . . . Kicked . | . . . . . . . . . . Crushed . | . . . . . . . . . . Highest Temperature 363 | . 259 . 254 . . 189 363 106 153 Average Temperature 77 | . 81 . 75 . . 80 95 50 56 Received Heat Transfer 438 | . 129 . 39 . . . 99 27 144 Effects 4 | . 1 . 3 . . . . . . Energy Bleed 1 | . 1 . . . . . . . . Interference 3 | . . . 3 . . . . . . Siege Activations . | . . . . . . . . . . Robots Corrupted . | . . . . . . . . . . Combat Hostiles . | . . . . . . . . . . Parts Fried . | . . . . . . . . . . Impact Corruptions . | . . . . . . . . . . Robots Melted 2 | . 1 . . . . . . 1 . Combat Hostiles 2 | . 1 . . . . . . 1 . Parts Melted 13 | . 3 . 2 . . 1 2 3 2 Heat Transferred 4590 | 175 1310 . 740 . . 259 1147 293 666 Parts Sabotaged . | . . . . . . . . . . Parts Stolen . | . . . . . . . . . . Parts Stripped . | . . . . . . . . . . Power Chain Reactions . | . . . . . . . . . . Missiles Intercepted . | . . . . . . . . . . Alert | -11 -10 -10 -9 -9 -9 -8 -8 -8 -8 ------- Run | Scr Mat Min Mat Min Exi Min Mat Gar Mat Peak Influence 443 | 20 338 200 312 19 . 218 210 138 443 Initial 85 | . 13 85 78 19 . . 84 20 66 Average 133 | 12 183 195 150 19 . 115 114 55 210 Maximum Alert Level 2 | . 1 1 1 . . 1 1 . 2 Low Security (%) 73 | 100 53 4 85 100 . 83 73 100 60 Level 1 24 | . 46 95 15 . . 16 26 . 26 Level 2 1 | . . . . . . . . . 12 Level 3 . | . . . . . . . . . . Level 4 . | . . . . . . . . . . Level 5 . | . . . . . . . . . . High Security . | . . . . . . . . . . Max Security . | . . . . . . . . . . Squads Dispatched 13 | . 3 . 2 . . . 1 . 7 Investigation 4 | . 2 . 1 . . . 1 . . Extermination . | . . . . . . . . . . Reinforcement 9 | . 1 . 1 . . . . . 7 Assault . | . . . . . . . . . . Garrison . | . . . . . . . . . . Intercept . | . . . . . . . . . . Searches Triggered . | . . . . . . . . . . Construction Impeded 1 | . . . . . . . . . 1 Haulers Reinforced . | . . . . . . . . . . Active Scanning Responses . | . . . . . . . . . . Cargo Convoy Interrupts . | . . . . . . . . . . Stealth | -11 -10 -10 -9 -9 -9 -8 -8 -8 -8 --------- Run | Scr Mat Min Mat Min Exi Min Mat Gar Mat Distress Signals 1 | . . . 1 . . . . . . Communications Jammed . | . . . . . . . . . . Distress Signals . | . . . . . . . . . . Times Spotted 83 | . 18 3 8 . . 9 14 5 26 Peak Tracking Total 9 | . 5 3 2 . . 4 4 4 9 Tactical Retreats 8 | . 2 . . . . 1 1 1 3 Traps | -11 -10 -10 -9 -9 -9 -8 -8 -8 -8 ------- Run | Scr Mat Min Mat Min Exi Min Mat Gar Mat Traps Triggered 2 | . 1 . . . . . . 1 . Indirectly . | . . . . . . . . . . Trap Hack Attempts . | . . . . . . . . . . Triggered . | . . . . . . . . . . Disarmed . | . . . . . . . . . . Reprogrammed . | . . . . . . . . . . Reused . | . . . . . . . . . . Traps Extracted . | . . . . . . . . . . Installed . | . . . . . . . . . . Triggered . | . . . . . . . . . . Machines | -11 -10 -10 -9 -9 -9 -8 -8 -8 -8 ---------- Run | Scr Mat Min Mat Min Exi Min Mat Gar Mat Machines Disabled 8 | . . . 3 . . . 2 1 2 Max in Single Turn 2 | . . . 2 . . . 1 1 1 Garrison Relay 1 | . . . . . . . . 1 . Machines Sabotaged . | . . . . . . . . . . Garrisons Compromised . | . . . . . . . . . . Overloaded Fab Kills . | . . . . . . . . . . Hacking | -11 -10 -10 -9 -9 -9 -8 -8 -8 -8 --------- Run | Scr Mat Min Mat Min Exi Min Mat Gar Mat Machines Accessed 34 | . 10 . 11 . . . 8 . 5 Terminals 24 | . 7 . 7 . . . 5 . 5 Fabricators . | . . . . . . . . . . Repair Stations 3 | . 1 . 1 . . . 1 . . Recycling Units 4 | . 2 . 2 . . . . . . Scanalyzers 2 | . . . 1 . . . 1 . . Garrison Access 1 | . . . . . . . 1 . . Total Hacks 146 | . 34 . 56 . . . 32 . 24 Successful 96 | . 16 . 44 . . . 21 . 15 Failed 50 | . 18 . 12 . . . 11 . 9 Catastrophic 3 | . 3 . . . . . . . . Database Lockouts . | . . . . . . . . . . Manual 100 | . 24 . 33 . 1 . 22 . 20 Terminals 109 | . 25 . 39 . . . 21 . 24 Fabricators . | . . . . . . . . . . Repair Stations 9 | . 2 . 4 . . . 3 . . Recycling Units 12 | . 7 . 5 . . . . . . Scanalyzers 10 | . . . 8 . . . 2 . . Garrison Access 6 | . . . . . . . 6 . . Terminal Hacks 39 | . 7 . 19 . . . 6 . 7 Record 1 | . . . . . . . . . 1 Part Schematic 2 | . . . . . . . . . 2 Robot Analysis 3 | . . . 2 . . . 1 . . Prototype ID Bank 5 | . 3 . 2 . . . . . . Branch Access Points 2 | . 1 . 1 . . . . . . Emergency Access Points 1 | . . . 1 . . . . . . Terminal Index 4 | . 1 . 1 . . . 1 . 1 Recycling Unit Index 1 | . . . 1 . . . . . . Alert Level 2 | . . . 2 . . . . . . Unreport Threat 2 | . . . 1 . . . 1 . . Locate Traps 1 | . . . 1 . . . . . . Dispatch Records 2 | . . . 1 . . . 1 . . Recall Investigation 1 | . . . 1 . . . . . . Recall Reinforcements 1 | . . . 1 . . . . . . Registered Prototypes 1 | . . . 1 . . . . . . Zone Layout 10 | . 2 . 3 . . . 2 . 3 Fabricator Hacks . | . . . . . . . . . . Repair Station Hacks 8 | . 2 . 4 . . . 2 . . Scan Component 4 | . 1 . 2 . . . 1 . . Repair 4 | . 1 . 2 . . . 1 . . Recycling Unit Hacks . | . . . . . . . . . . Scanalyzer 10 | . . . 8 . . . 2 . . Insert Component 5 | . . . 4 . . . 1 . . Analyze 5 | . . . 4 . . . 1 . . Garrison Access Hacks 1 | . . . . . . . 1 . . Unlock Access 1 | . . . . . . . 1 . . Unauthorized Hacks 38 | . 7 . 13 . . . 10 . 8 Terminals 28 | . 6 . 8 . . . 6 . 8 Track 9 | . 3 . 2 . . . 2 . 2 Assimilate 3 | . . . 1 . . . . . 2 Botnet 12 | . 2 . 4 . . . 3 . 3 Operators 4 | . 1 . 1 . . . 1 . 1 Fabricators . | . . . . . . . . . . Repair Stations . | . . . . . . . . . . Recycling Units 6 | . 1 . 5 . . . . . . Reject 3 | . 1 . 2 . . . . . . Recyclers 1 | . . . 1 . . . . . . Mask 2 | . . . 2 . . . . . . Scanalyzers . | . . . . . . . . . . Garrison Access 4 | . . . . . . . 4 . . Broadcast 1 | . . . . . . . 1 . . Restock 1 | . . . . . . . 1 . . Decoy 1 | . . . . . . . 1 . . Intercept 1 | . . . . . . . 1 . . Data Cores Recovered . | . . . . . . . . . . Used . | . . . . . . . . . . Hacking Detections 33 | . 10 . 10 . . . 8 . 5 Full Trace Events 7 | . 2 . 4 . . . 1 . . Feedback Events . | . . . . . . . . . . Feedback Blocked . | . . . . . . . . . . Robot Schematics Acquired . | . . . . . . . . . . Robots Built . | . . . . . . . . . . Authchips . | . . . . . . . . . . Time . | . . . . . . . . . . Total Robot Build Rating . | . . . . . . . . . . Part Schematics Acquired 7 | . . . 4 . . . 1 . 2 Parts Built . | . . . . . . . . . . Authchips . | . . . . . . . . . . Time . | . . . . . . . . . . Total Part Build Rating . | . . . . . . . . . . Parts Repaired 4 | . 1 . 2 . . . 1 . . Time 109 | . 32 . 52 . . . 25 . . Parts Recycled . | . . . . . . . . . . Recycled Matter . | . . . . . . . . . . Retrieved Matter . | . . . . . . . . . . Retrieved Components . | . . . . . . . . . . Parts Scanalyzed 5 | . . . 4 . . . 1 . . Part Schematics Acquired 5 | . . . 4 . . . 1 . . Parts Damaged . | . . . . . . . . . . Bothacking | -11 -10 -10 -9 -9 -9 -8 -8 -8 -8 ------------ Run | Scr Mat Min Mat Min Exi Min Mat Gar Mat Used RIF Installer 1 | . . . . . . . . 1 . Robots Hacked . | . . . . . . . . . . Non-combat . | . . . . . . . . . . Combat . | . . . . . . . . . . Robot Hacks Applied . | . . . . . . . . . . Relay Couplers Released 7 | . . . . . . . 4 3 . Machine Destruction 3 | . . . . . . . . 3 . Programmers 4 | . . . . . . . 4 . . Fabnet Peak Effective % . | . . . . . . . . . . Robots Rewired . | . . . . . . . . . . Allies Hacked . | . . . . . . . . . . Hacks Repelled . | . . . . . . . . . . Allies | -11 -10 -10 -9 -9 -9 -8 -8 -8 -8 -------- Run | Scr Mat Min Mat Min Exi Min Mat Gar Mat Total Allies 3 | . . . 1 1 . . . . 1 Largest Group 2 | . . . 1 2 2 1 1 . 1 Highest-Rated Group 41 | . . . 10 41 41 10 10 . 26 Highest-Rated Ally 31 | . . . 10 31 31 10 10 . 26 Total Orders 2 | . . . 2 . . . . . . STAY 1 | . . . 1 . . . . . . FOLLOW 1 | . . . 1 . . . . . . Ally Attacks . | . . . . . . . . . . Total Damage . | . . . . . . . . . . Kills . | . . . . . . . . . . Allies Corrupted . | . . . . . . . . . . Allies Melted . | . . . . . . . . . . Intel | -11 -10 -10 -9 -9 -9 -8 -8 -8 -8 ------- Run | Scr Mat Min Mat Min Exi Min Mat Gar Mat Robot Analysis Total 3 | . . . 2 . . . 1 . . Derelict Logs Recovered 1 | . . . . 1 . . . . . Drone Launches . | . . . . . . . . . . Drone Recoveries . | . . . . . . . . . . Exploration | -11 -10 -10 -9 -9 -9 -8 -8 -8 -8 ------------- Run | Scr Mat Min Mat Min Exi Min Mat Gar Mat Turns Passed 3236 | 175 692 44 500 183 150 287 666 172 367 Spaces Moved 4087 | 58 791 96 727 312 210 541 658 285 409 Core 24 | 14 2 . . . . . 2 . 6 Treads . | . . . . . . . . . . Legs 47 | 44 3 . . . . . . . . Wheels . | . . . . . . . . . . Hover 94 | . 94 . . . . . . . . Flight 3922 | . 692 96 727 312 210 541 656 285 403 Fastest Speed 20 | 50 37 37 34 34 34 34 31 37 20 Average Speed 37 | 106 39 37 35 34 34 34 34 37 38 Slowest Speed 200 | 120 150 37 37 34 34 34 200 40 200 Overloaded Moves 17 | . . . . . . . . . 17 Propulsion Burnouts . | . . . . . . . . . . Robots Hopped 29 | . 4 . 7 2 . 3 10 . 3 Cave-ins Triggered . | . . . . . . . . . . Exploration Rate (%) 46 | 5 94 24 52 45 60 76 39 40 27 Regions Visited 9 Branch Regions 4 Pre-discovered Areas 1 | . . . . 1 . . . . . Known Exits Taken 3 | . 1 . 1 . . . 1 . . Unknown Exits Taken 5 | 1 . 1 . 1 1 1 . . . Scrap Searched 2 | . . . . 1 . 1 . . . Spaces Dug 11 | . . . . . . . 11 . . Terrain Destroyed 78 | . 4 10 10 . . 14 19 . 21 Melee . | . . . . . . . . . . Projectile 2 | . . . . . . 1 . . 1 AOE 76 | . 4 10 10 . . 13 19 . 20 Terrain Rammed . | . . . . . . . . . . Walls Destroyed . | . . . . . . . . . . Machines Disabled . | . . . . . . . . . . Actions | -11 -10 -10 -9 -9 -9 -8 -8 -8 -8 --------- Run | Scr Mat Min Mat Min Exi Min Mat Gar Mat Total 5541 | 153 1107 103 938 386 288 620 1040 337 569 Wait 1135 | 70 221 5 168 77 77 63 312 37 105 Move 4021 | 57 782 95 712 307 209 534 638 284 403 Hop 28 | . 4 . 7 2 . 3 9 . 3 Pick Up 54 | 10 19 . 9 . 1 . 12 2 1 Fast Attach 14 | . 1 . 1 . . . 4 . 8 Attach 34 | 7 10 . 6 . . . 9 . 2 Detach 2 | . . . 1 . . . 1 . . Swap 13 | . 6 1 1 . . 1 3 . 1 Drop 40 | . 16 1 7 . 1 1 9 2 3 Fire 200 | 9 48 1 26 . . 18 43 12 43 Melee . | . . . . . . . . . . Ram . | . . . . . . . . . . Kick . | . . . . . . . . . . Crush . | . . . . . . . . . . Escape Stasis . | . . . . . . . . . . Rewire . | . . . . . . . . . . Trap . | . . . . . . . . . . Miscellaneous . | . . . . . . . . . . Route ------- -11/Scrapyard -10/Materials (discovered 4 exits: *Mat x3 / *Min) -10/Mines -9/Materials (discovered 4 exits: *Mat x2 / *Min x2) -9/Mines (discovered 2 exits: *Mat / *Exi) -9/Exiles -8/Mines -8/Materials (discovered 2 exits: [*Fac] / Gar) -8/Garrison -8/Materials (discovered 2 exits: [Fac] / [*Sto]) History --------- Turn | Location | Event 18 | -11/Scrapyard | Discovered new exit (range 15) 176 | -11/Scrapyard | Entered Materials 249 | -10/Materials | Discovered new exit (range 5) 249 | -10/Materials | Identified exit to Mines 326 | -10/Materials | Build established: Mutant 337 | -10/Materials | Repaired Imp. Hover Unit 448 | -10/Materials | Discovered new exit (range 15) 462 | -10/Materials | Discovered new exit (range 4) 868 | -10/Materials | Entered Mines 881 | -10/Mines | Found a damaged Exp. Sensor Array with a note attached 896 | -10/Mines | Received a Rocket Launcher from a helpful Derelict 909 | -10/Mines | Discovered new exit (range 9) 912 | -10/Mines | Entered Materials 912 | -9/Materials | Evolved 2 slots: Propulsion x1, Utility x1 997 | -9/Materials | Identified exit to Mines 1034 | -9/Materials | Repaired Flight Unit 1063 | -9/Materials | Repaired Flight Unit 1188 | -9/Materials | Discovered new exit (range 16) 1258 | -9/Materials | Discovered new exit (range 16) 1358 | -9/Materials | Build established: Scavenger-Mutant 1412 | -9/Materials | Entered Mines 1412 | -9/Mines | Accompanied by 1 ally 1437 | -9/Mines | Learned location of Zion (-7) 1457 | -9/Mines | Discovered new exit (range 9) 1460 | -9/Mines | Received a Mining Laser from a helpful Derelict 1519 | -9/Mines | Deemed a non-threat by the Exiles lab entrance 1519 | -9/Mines | Discovered new exit (range 5) 1595 | -9/Mines | Entered Exiles 1595 | -9/Exiles | Accompanied by 2 allies 1604 | -9/Exiles | Met 8R-AWN 1610 | -9/Exiles | Met EX-HEX 1620 | -9/Exiles | Met EX-BIN 1624 | -9/Exiles | Aligned with FarCom system 1625 | -9/Exiles | Given EX-Vault access code 1633 | -9/Exiles | Opened EX-Vault 1635 | -9/Exiles | Found Prototype Processor 1644 | -9/Exiles | Warned to stay clear of 0b10 Research branches 1652 | -9/Exiles | Met EX-DEC 1665 | -9/Exiles | Discovered new exit (range 10) 1745 | -9/Exiles | Left Exiles lab with 0b10 Alert Chip 1745 | -9/Exiles | Entered Mines 1745 | -8/Mines | Accompanied by 2 allies 2006 | -8/Mines | Discovered new exit (range 5) 2032 | -8/Mines | Entered Materials 2032 | -8/Materials | Accompanied by 1 ally 2032 | -8/Materials | Evolved 2 slots: Propulsion x1, Utility x1 2034 | -8/Materials | Identified 0b10 Alert Chip 2231 | -8/Materials | Discovered new exit (range 8) 2245 | -8/Materials | Identified exit to Garrison 2407 | -8/Materials | Build established: Scavenger-Sprinter 2543 | -8/Materials | Lost 6 parts (1p4n1w) 2591 | -8/Materials | Repaired Adv. Beam Cannon 2698 | -8/Materials | Entered Garrison 2700 | -8/Garrison | Installed Relay Interface Framework 2768 | -8/Garrison | Triggered checkpoint 2778 | -8/Garrison | Spotted B-75 Beast 2802 | -8/Garrison | Discovered new exit (range 12) 2822 | -8/Garrison | Triggered checkpoint 2853 | -8/Garrison | Garrison Relay disabled 2870 | -8/Garrison | Entered Materials 3002 | -8/Materials | Discovered new exit (range 17) 3168 | -8/Materials | Discovered new exit (range 16) 3218 | -8/Materials | Core integrity fell below 50% 3228 | -8/Materials | Core integrity fell below 20% 3237 | -8/Materials | Destroyed by G-47 Trooper with Particle Gun Last Messages --------------- 03217_ Adv. Beam Cannon destroyed. 03217_ Surge Thruster destroyed. 03217_ Knocked back. 03219_ Penetrated by Slug. 03222_ Proton Missile Launcher destroyed. 03222_ Critical hit (Burn: +37). 03223_ Penetrated by Slug. 03223_ Knocked back. 03224_ U-05 Engineer lays Concrete. 03227_ U-05 Engineer builds a Wall. 03229_ Penetrated by Slug. 03231_ U-05 Engineer lays Concrete. 03231_ Adv. Weight Redist. System destroyed. 03231_ Minigun destroyed. 03232_ U-05 Engineer lays Concrete. 03234_ Cesium-ion Thruster destroyed. 03235_ ALERT: Construction progress impeded, dispatching reinforcements to local area. 03236_ H-61 Shepherd misfires. [Achievement: Achiever] Map ----- +----------------------------------------------------+ | ???????# ??# ! | | ???????# ??# # | | ???????#???####### # # | | ?????????????????##### # | | ?????????????????????# # | | ?????????